bitfinex/quotes_ETHUSD_20241109
["timestamp","ask_amount","ask_price","bid_price","bid_amount"]
[1731148507622,1.03138081,3045.6,3045.5,0.01]
[1731148508755,2.40231197,3045.6,3045.5,0.01]
[1731148508906,1.02679025,3045.6,3045.3,0.01]
[1731148509253,1.37520791,3045.5,3045.3,0.01]
[1731148510054,1.37520791,3045.4,3045.3,0.01]
[1731148511743,1.37520791,3045.4,3045.1,0.01]
[1731148511954,1.03171736,3045.2,3045.1,0.01]
[1731148516714,1.03171736,3045.2,3044.9,0.7861]
[1731148516715,0.7605,3045.1,3044.9,0.01]
[1731148516953,2.13570791,3045.1,3044.9,0.01]
[1731148517138,1.37520791,3045.0,3044.9,0.01]
[1731148517460,1.76073764,3045.0,3044.9,0.01]
[1731148517826,1.76073764,3045.0,3044.7,0.01]
[1731148518044,1.03174156,3044.8,3044.7,0.01]
[1731148518215,1.03174156,3044.8,3044.5,0.01]
[1731148518418,1.79224156,3044.7,3044.5,0.01]
[1731148518620,1.03174156,3044.6,3044.5,0.01]
[1731148519033,2.89676002,3044.7,3044.5,0.01]
[1731148519473,1.37520791,3044.6,3044.5,0.01]
[1731148519679,2.89676002,3044.7,3044.5,0.01]
[1731148519988,1.37520791,3044.6,3044.5,0.01]
[1731148520278,4.8368505,3044.6,3044.3,0.01]
[1731148520445,1.03141717,3044.5,3044.3,0.01]
[1731148520653,0.68742163,3044.4,3044.3,0.01]
[1731148520848,1.03141717,3044.4,3044.3,0.01]
[1731148521664,0.687227,3044.4,3044.3,0.01]
[1731148522045,1.03141717,3044.5,3044.3,0.01]
[1731148522577,0.68724708,3044.4,3044.3,0.01]
[1731148522762,0.68724708,3044.5,3044.3,0.01]
[1731148523548,0.68724708,3044.4,3044.3,0.01]
[1731148523744,0.68724708,3044.5,3044.3,0.01]
[1731148524483,0.68724708,3044.6,3044.3,0.01]
[1731148527509,0.68724708,3044.7,3044.5,0.01]
[1731148527714,0.68724708,3044.8,3044.7,0.01]
[1731148530311,1.15911351,3044.8,3044.7,0.01]
[1731148530607,0.68724708,3044.8,3044.7,0.01]
[1731148530808,0.68724708,3044.9,3044.7,0.01]
[1731148531012,0.68724708,3044.9,3044.7,0.8295]
[1731148531217,0.68724708,3045.1,3044.9,0.01]
[1731148531434,0.68724708,3045.2,3045.1,0.01]
[1731148531600,0.68724708,3045.2,3045.1,0.8295]
[1731148531804,0.68724708,3045.3,3045.1,0.8295]
[1731148532135,0.68724708,3045.2,3045.1,0.8295]
[1731148532445,0.68724708,3045.3,3045.1,0.8295]
[1731148532727,0.68724708,3045.4,3045.3,0.01]
[1731148535939,3.28602,3043.2,3042.8,2.06024172]
[1731148536094,0.6862049,3042.9,3041.5,0.9597591]
[1731148536296,0.68607024,3042.6,3041.5,0.9597591]
[1731148536595,3.68607024,3042.6,3041.6,0.01]
[1731148536801,0.68607024,3042.6,3041.6,0.07574242]
[1731148537105,0.68607024,3042.8,3041.7,0.8195]
[1731148537319,0.68607024,3042.8,3041.7,0.84222007]
[1731148537320,0.68607024,3042.7,3041.7,0.84222007]
[1731148537521,0.68607024,3042.7,3041.7,0.7795]
[1731148537730,0.69607024,3042.9,3041.7,0.7795]
[1731148538597,0.24460312,3042.5,3041.7,0.7795]
[1731148538797,0.01,3042.9,3041.7,0.7795]
[1731148539047,0.305059,3042.8,3041.7,0.7795]
[1731148539340,0.01,3042.9,3041.7,0.7795]
[1731148542977,0.01,3042.9,3041.8,0.06270219]
[1731148543459,0.01,3042.9,3041.7,0.7795]
[1731148543622,3.01,3042.9,3041.8,0.06268832]
[1731148543824,3.64503078,3042.9,3041.7,0.7795]
[1731148544020,3.64503078,3042.9,3041.8,0.06267445]
[1731148544215,3.64503078,3042.9,3041.7,0.7795]
[1731148544420,3.64503078,3042.9,3041.8,0.06267445]
[1731148544658,3.64503078,3042.9,3041.7,0.7795]
[1731148544865,0.01,3043.1,3041.8,0.07266057]
[1731148545164,5.72340576,3043.3,3041.8,0.07266057]
[1731148545165,2.73340576,3043.3,3042.2,0.8062]
[1731148545551,2.73340576,3043.3,3042.3,0.06243248]
[1731148546058,2.73340576,3043.3,3042.2,0.8062]
[1731148546268,2.73340576,3043.3,3042.3,0.06243248]
[1731148546561,3.0,3043.2,3042.2,0.8062]
[1731148546725,3.0,3043.2,3042.3,0.0657314]
[1731148546926,3.0,3043.2,3042.3,0.06243248]
[1731148547164,3.0,3043.2,3042.2,0.8062]
[1731148547567,3.0,3043.2,3042.3,0.06243248]
[1731148547925,0.34774731,3043.3,3042.2,0.8162]
[1731148548159,0.01,3043.3,3042.2,0.8162]
[1731148548353,0.01,3043.3,3042.3,0.06277485]
[1731148549764,3.37463986,3043.9,3042.5,0.01]
[1731148549980,0.01,3044.0,3042.9,0.8062]
[1731148550301,2.72340576,3044.2,3043.1,0.8062]
[1731148550503,2.99674634,3044.2,3043.2,0.06239221]
[1731148550666,2.99674634,3044.2,3043.1,0.8162]
[1731148550872,0.01,3044.3,3043.2,0.06239221]
[1731148551071,0.01,3044.3,3043.3,0.8062]
[1731148551273,2.73340576,3044.5,3043.4,0.06260148]
[1731148551474,2.72340576,3044.5,3043.5,0.8062]
[1731148551697,2.73340576,3044.5,3043.6,0.06251033]
[1731148551898,3.00674634,3044.5,3043.5,0.8062]
[1731148552903,2.99674634,3044.5,3043.5,0.8162]
[1731148553894,2.99674634,3044.5,3043.5,0.8062]
[1731148554105,3.0,3044.4,3043.5,0.8162]
[1731148554305,3.0,3044.4,3043.5,0.8062]
[1731148554522,2.72340576,3043.9,3043.5,0.8062]
[1731148557092,2.73340576,3043.9,3043.0,0.8062]
[1731148559892,0.01,3044.2,3043.2,0.8062]
[1731148560207,0.01,3044.2,3043.3,0.06571047]
[1731148560388,3.01,3044.2,3043.2,0.8062]
[1731148560596,0.63330804,3044.1,3043.2,0.8062]
[1731148561219,3.0,3043.9,3043.2,0.8062]
[1731148562234,0.01,3043.7,3043.2,0.8062]
[1731148562432,0.01,3043.7,3042.6,0.8062]
[1731148562939,0.01,3043.7,3042.7,0.06102285]
[1731148563120,0.39379,3043.7,3042.7,0.06102285]
[1731148563493,0.01,3043.5,3042.7,0.06102285]
[1731148563698,0.01,3043.5,3042.6,0.8062]
[1731148564324,0.24439882,3043.4,3042.6,0.8062]
[1731148564529,0.01,3043.5,3042.6,0.8062]
[1731148564836,0.01,3043.2,3042.4,0.8062]
[1731148565039,3.01,3043.0,3042.4,0.8062]
[1731148566915,0.01,3043.5,3042.4,0.8062]
[1731148567263,0.01,3043.5,3042.5,0.87722857]
[1731148569183,0.01,3043.2,3042.5,0.87722857]
[1731148569560,0.01,3043.2,3042.5,0.8196]
[1731148570264,0.90320058,3043.7,3042.5,0.8196]
[1731148570265,0.01,3043.4,3042.5,0.8196]
[1731148570663,0.01,3043.4,3042.6,0.05758296]
[1731148571051,0.01,3043.2,3042.6,0.05758296]
[1731148571256,0.01,3043.4,3042.5,0.8196]
[1731148571463,0.01,3043.4,3042.7,0.05753736]
[1731148571640,0.01,3043.4,3042.6,0.05758296]
[1731148571854,0.01,3043.4,3042.5,0.8196]
[1731148572185,0.30620709,3043.3,3042.6,0.05758296]
[1731148572383,0.55128156,3043.2,3042.5,0.8196]
[1731148572679,0.01,3043.4,3042.5,0.8196]
[1731148572886,0.55123318,3043.3,3042.6,0.05758296]
[1731148573047,0.30624097,3043.2,3042.6,0.05758296]
[1731148573242,0.55123318,3043.1,3042.6,0.05758296]
[1731148573443,0.01,3043.4,3042.5,0.8196]
[1731148573762,0.85240327,3043.3,3042.5,0.8196]
[1731148573969,0.55140327,3043.2,3042.5,0.8196]
[1731148574170,0.55140327,3043.1,3042.5,0.8196]
[1731148574338,0.31633516,3043.0,3042.5,0.8196]
[1731148574548,0.30638725,3042.9,3042.5,0.8196]
[1731148574791,0.01,3043.0,3042.5,0.8196]
[1731148575085,0.55149112,3042.9,3042.5,0.8196]
[1731148575281,0.01,3042.8,3041.7,0.8196]
[1731148575456,0.01,3042.6,3041.7,0.8196]
[1731148575661,0.01,3042.6,3041.8,0.05803406]
[1731148575888,0.01,3042.6,3041.7,0.8196]
[1731148576487,0.01,3042.6,3041.8,0.05814675]
[1731148576849,0.8086,3042.5,3041.8,0.05814675]
[1731148577051,0.01,3042.6,3041.8,0.05814675]
[1731148577251,0.01,3042.6,3041.7,0.8196]
[1731148577782,0.01,3042.6,3041.8,0.05816995]
[1731148577783,0.01,3042.1,3041.8,0.05816995]
[1731148577994,0.01,3042.1,3041.7,0.8196]
[1731148578746,0.01,3042.5,3041.7,0.8196]
[1731148578985,0.01,3042.5,3041.8,0.05824622]
[1731148579192,0.01,3042.3,3041.8,0.05824622]
[1731148579348,0.01,3042.3,3041.7,0.8196]
[1731148581589,0.8186,3042.3,3041.7,0.8196]
[1731148581795,0.01,3042.1,3041.7,0.8196]
[1731148584606,0.01,3042.1,3041.5,0.9598591]
[1731148585104,0.01,3042.1,3041.6,0.05833748]
[1731148585324,0.01,3042.3,3041.6,0.05833748]
[1731148585478,0.69252836,3042.7,3041.7,0.06574941]
[1731148585678,0.30594445,3042.6,3041.8,0.7898]
[1731148585891,1.81949255,3042.9,3041.8,0.7898]
[1731148585892,0.68252836,3042.9,3041.8,0.7898]
[1731148586096,0.69252836,3043.0,3041.8,0.7898]
[1731148586283,0.30603194,3042.9,3042.0,0.7898]
[1731148586478,0.01,3043.0,3042.0,0.7898]
[1731148586799,0.69252836,3043.0,3042.2,0.7898]
[1731148586965,0.94373045,3043.0,3042.2,0.7898]
[1731148587166,0.30610974,3042.9,3042.2,0.7898]
[1731148587391,0.94373045,3043.0,3042.2,0.7898]
[1731148587595,0.30618679,3042.9,3042.2,0.7898]
[1731148587803,0.26120209,3043.0,3042.2,0.7898]
[1731148588330,0.01,3043.0,3042.3,0.0581229]
[1731148588687,0.69252836,3043.2,3042.4,0.7898]
[1731148588882,0.30626449,3043.1,3042.4,0.7898]
[1731148589124,0.30631415,3043.0,3042.4,0.7898]
[1731148589328,0.31631415,3042.9,3042.4,0.7898]
[1731148589533,0.01,3042.9,3042.4,0.7898]
[1731148590092,0.69252836,3043.1,3042.4,0.7898]
[1731148590413,0.3063246,3043.0,3042.4,0.7898]
[1731148590726,0.69252836,3043.1,3042.4,0.7898]
[1731148590930,0.30632324,3043.0,3042.4,0.7898]
[1731148591101,1.19426045,3043.1,3042.4,0.7898]
[1731148591306,0.30634698,3043.0,3042.4,0.7898]
[1731148591508,1.19426045,3043.1,3042.4,0.7898]
[1731148591714,0.30641418,3043.0,3042.4,0.7898]
[1731148591903,1.19426045,3043.1,3042.4,0.7898]
[1731148592104,0.30641748,3043.0,3042.4,0.7898]
[1731148592304,0.30641748,3042.9,3042.4,0.7898]
[1731148592635,1.32479255,3043.3,3042.4,0.7898]
[1731148592636,0.68252836,3043.2,3042.4,0.7898]
[1731148592829,0.01,3043.3,3042.4,0.7898]
[1731148592998,0.68252836,3043.5,3042.5,0.84780501]
[1731148593203,0.30651629,3043.4,3042.7,0.7898]
[1731148593405,0.69252836,3043.6,3042.8,0.85552227]
[1731148593700,0.30654515,3043.5,3042.8,0.91332914]
[1731148594050,0.01,3043.8,3042.8,0.84760687]
[1731148594250,0.306561,3043.7,3042.8,0.84760687]
[1731148594608,0.01,3043.8,3042.8,0.7898]
[1731148595124,0.68252836,3044.0,3042.8,0.7898]
[1731148595327,0.68252836,3044.3,3043.3,0.7898]
[1731148595618,0.68252836,3044.6,3043.4,0.05714519]
[1731148595822,0.01,3044.7,3043.5,0.7898]
[1731148595823,0.30635392,3044.5,3043.5,0.7898]
[1731148596157,0.01,3044.3,3043.5,0.7898]
[1731148596450,0.30619722,3044.2,3043.6,0.05705403]
[1731148596647,0.01,3044.3,3043.6,0.05705403]
[1731148596953,0.01,3044.5,3043.6,0.05705403]
[1731148597108,0.68252836,3044.7,3043.7,0.7898]
[1731148597310,0.01,3044.5,3043.7,0.7898]
[1731148597622,0.01,3044.5,3043.8,0.05688338]
[1731148597819,0.01,3044.5,3043.7,0.7898]
[1731148598145,0.01,3044.5,3043.9,0.05683615]
[1731148598331,0.85416045,3044.7,3043.9,0.05683615]
[1731148598332,0.17163209,3044.7,3043.9,0.7898]
[1731148598532,0.3058421,3044.6,3043.9,0.7898]
[1731148598846,0.68252836,3045.0,3043.9,0.7898]
[1731148599045,0.68252836,3045.0,3042.7,0.27334058]
[1731148599046,0.01,3044.8,3044.0,0.8465525]
[1731148599220,0.48455462,3044.8,3044.0,0.8465525]
[1731148599421,0.01,3044.8,3044.0,0.7898]
[1731148600263,0.01,3045.0,3044.0,0.7898]
[1731148600411,0.01,3045.0,3044.1,0.05665726]
[1731148600611,0.01,3044.7,3044.1,0.7898]
[1731148602236,0.01,3044.9,3044.1,0.7898]
[1731148602436,0.01,3044.9,3044.2,0.05660342]
[1731148602641,0.01,3044.9,3044.1,0.7898]
[1731148602867,0.01,3044.9,3044.3,0.0564592]
[1731148603146,0.01,3044.9,3044.4,0.7898]
[1731148604634,0.01,3044.7,3043.4,0.7898]
[1731148604957,0.01,3045.7,3044.5,0.84616811]
[1731148605113,0.01,3045.5,3044.6,0.8554796]
[1731148605312,0.01,3045.5,3044.6,0.7898]
[1731148605733,0.01,3045.5,3044.6,0.84610932]
[1731148606047,0.01,3045.8,3044.8,0.7637]
[1731148606268,0.01,3045.7,3044.8,0.7637]
[1731148606782,0.01,3045.5,3044.9,0.05615781]
[1731148607271,0.01,3045.5,3044.8,0.7637]
[1731148608780,0.01,3045.3,3044.8,0.7637]
[1731148609858,0.01,3045.1,3044.8,0.7637]
[1731148610780,0.01,3045.3,3044.8,0.7637]
[1731148611634,0.01,3045.8,3044.8,0.7637]
[1731148611835,0.39057,3045.8,3044.8,0.7637]
[1731148612078,0.01,3045.8,3044.9,0.81958624]
[1731148613179,0.01,3045.5,3044.9,0.81958624]
[1731148613377,0.01,3045.8,3044.9,0.81958624]
[1731148616187,0.01,3046.0,3044.9,0.81958624]
[1731148616389,0.01,3046.3,3045.1,0.8049]
[1731148616712,0.01,3046.3,3045.2,0.86056375]
[1731148616855,0.01,3046.1,3045.2,0.86056375]
[1731148619051,0.01,3046.3,3045.2,0.86056375]
[1731148619793,0.01,3046.1,3045.2,0.86056375]
[1731148624061,0.01,3046.3,3045.2,0.86056375]
[1731148624457,0.01,3046.5,3045.3,0.87056597]
[1731148624657,0.01,3046.5,3045.5,0.8049]
[1731148625098,0.01,3046.5,3045.7,0.8049]
[1731148625451,0.55,3046.8,3045.7,0.8049]
[1731148625452,0.01,3046.0,3045.7,0.8049]
[1731148630898,0.01,3045.8,3045.4,0.8329]
[1731148631275,0.01,3045.8,3045.5,0.05401369]
[1731148631705,0.01,3045.8,3045.4,0.8329]
[1731148632719,0.01,3046.2,3045.4,0.8329]
[1731148632950,0.30663728,3046.1,3045.4,0.8329]
[1731148633079,0.55,3046.8,3045.4,0.8329]
[1731148633273,0.55,3046.8,3045.5,0.88692029]
[1731148633274,0.55,3046.6,3045.5,0.88692029]
[1731148633474,0.55,3046.4,3045.5,0.8329]
[1731148633698,0.30663633,3046.3,3045.5,0.8329]
[1731148634016,0.30663633,3046.2,3045.6,0.05397477]
[1731148634383,0.30663633,3046.5,3045.7,0.8329]
[1731148634577,0.39659341,3046.8,3045.8,0.05388376]
[1731148634578,0.30681599,3046.4,3045.8,0.05388376]
[1731148634778,0.39659341,3046.8,3045.1,0.8329]
[1731148634779,0.30681599,3046.3,3045.1,0.8329]
[1731148635024,3.0,3046.8,3045.3,0.8329]
[1731148635221,0.30677475,3046.7,3045.4,0.89855873]
[1731148635435,0.30677475,3046.6,3045.4,0.96262453]
[1731148635607,2.72340576,3047.2,3045.4,0.96262453]
[1731148635813,0.30667938,3047.1,3045.4,0.96262453]
[1731148635995,0.30667938,3047.0,3045.6,0.759]
[1731148636192,0.30667938,3046.9,3045.8,0.759]
[1731148636523,0.8276,3046.7,3045.9,0.05377066]
[1731148636748,0.30667938,3046.6,3045.9,0.05377066]
[1731148636951,0.30667938,3046.5,3045.8,0.759]
[1731148637151,0.30667938,3046.4,3045.8,0.759]
[1731148637449,0.30668949,3046.3,3045.8,0.759]
[1731148637649,0.30668949,3046.2,3045.5,0.759]
[1731148637831,0.30668949,3046.1,3045.5,0.759]
[1731148638153,0.30668949,3046.3,3045.5,0.759]
[1731148638333,0.30670533,3046.2,3045.5,0.759]
[1731148638540,0.30670533,3046.1,3045.5,0.759]
[1731148638709,0.38566895,3046.3,3045.5,0.759]
[1731148638710,0.30670533,3046.2,3045.5,0.759]
[1731148638908,0.30670533,3046.1,3045.5,0.759]
[1731148639124,0.30670533,3046.0,3045.5,0.759]
[1731148639350,0.38566895,3046.3,3045.5,0.759]
[1731148639642,0.30680348,3046.2,3045.5,0.759]
[1731148639847,0.30680348,3046.1,3045.5,0.759]
[1731148640063,0.68252836,3046.5,3045.5,0.759]
[1731148640343,0.30675162,3046.4,3045.3,0.759]
[1731148640568,4.51012836,3046.9,3045.7,0.759]
[1731148640569,1.51012836,3046.9,3045.7,0.759]
[1731148640698,0.98931904,3046.8,3045.7,0.759]
[1731148640903,0.30679068,3046.7,3045.7,0.759]
[1731148641105,0.30679068,3046.6,3045.7,0.759]
[1731148641403,0.30688217,3046.5,3045.7,0.759]
[1731148641755,0.68252836,3046.8,3045.7,0.759]
[1731148641905,0.3068272,3046.7,3045.7,0.759]
[1731148642249,0.68252836,3046.8,3045.7,0.759]
[1731148642250,0.3068272,3046.6,3045.7,0.759]
[1731148642545,0.3068272,3046.5,3045.7,0.759]
[1731148642852,0.3068272,3046.4,3045.7,0.759]
[1731148643009,0.3068272,3046.3,3045.7,0.759]
[1731148643209,0.3068272,3046.2,3045.8,0.05386727]
[1731148643439,0.68252836,3046.5,3045.7,0.759]
[1731148643633,0.30686247,3046.4,3045.7,0.759]
[1731148643838,0.30686247,3046.3,3045.8,0.05386727]
[1731148644039,0.30686247,3046.2,3045.8,0.05386727]
[1731148644250,0.68252836,3046.5,3045.7,0.759]
[1731148644465,0.30687943,3046.4,3045.7,0.759]
[1731148644763,0.68252836,3046.4,3045.7,0.759]
[1731148644915,0.30688499,3046.3,3045.7,0.759]
[1731148645121,0.30688499,3046.2,3045.7,0.759]
[1731148645320,0.30688499,3046.1,3045.7,0.759]
[1731148645570,0.30688499,3046.0,3045.7,0.759]
[1731148645730,0.30688499,3045.9,3045.7,0.759]
[1731148645935,0.68252836,3046.2,3045.7,0.759]
[1731148646145,0.30695579,3046.1,3045.7,0.759]
[1731148646459,0.68252836,3046.4,3045.7,0.759]
[1731148646768,0.30696914,3046.3,3045.7,0.759]
[1731148646947,0.30696914,3046.2,3045.7,0.759]
[1731148647151,0.30696914,3046.1,3045.7,0.759]
[1731148647355,0.30696914,3046.0,3045.7,0.759]
[1731148647647,0.68252836,3046.2,3045.7,0.759]
[1731148647846,0.3069803,3046.1,3045.7,0.759]
[1731148648068,0.3069803,3046.0,3045.7,0.759]
[1731148648276,0.68252836,3046.3,3045.7,0.759]
[1731148648433,0.30697845,3046.2,3045.7,0.759]
[1731148648622,0.30697845,3046.1,3045.7,0.759]
[1731148648824,0.30697845,3046.0,3045.7,0.759]
[1731148649122,0.30697845,3045.9,3045.7,0.759]
[1731148649339,0.68252836,3046.2,3045.7,0.759]
[1731148649554,0.30699403,3046.1,3045.7,0.759]
[1731148649744,0.30699403,3046.0,3045.7,0.759]
[1731148649950,0.30699403,3045.9,3045.7,0.759]
[1731148650152,0.68252836,3046.2,3045.7,0.759]
[1731148650363,0.30698881,3046.1,3045.7,0.759]
[1731148650567,0.30699862,3046.0,3045.7,0.759]
[1731148650767,0.30699862,3045.9,3045.7,0.759]
[1731148651078,0.68252836,3046.1,3045.7,0.759]
[1731148651361,0.30700168,3046.0,3045.7,0.759]
[1731148651565,0.30700168,3045.9,3045.7,0.759]
[1731148651872,0.68252836,3046.1,3045.7,0.759]
[1731148652027,0.30701308,3046.0,3045.7,0.759]
[1731148652225,0.30701308,3045.9,3045.7,0.759]
[1731148652552,0.68252836,3046.1,3045.7,0.759]
[1731148652870,0.3070253,3046.0,3045.7,0.759]
[1731148653027,0.3070253,3045.9,3045.7,0.759]
[1731148653228,0.3070253,3045.8,3045.7,0.759]
[1731148655368,1.02379255,3046.2,3045.7,0.759]
[1731148655369,0.68252836,3046.1,3045.7,0.759]
[1731148655570,0.98956058,3046.0,3045.7,0.759]
[1731148655873,0.68252836,3046.1,3045.7,0.759]
[1731148656029,0.30702546,3046.0,3045.7,0.759]
[1731148656223,0.68252836,3046.1,3045.8,0.05375679]
[1731148656424,0.30703173,3046.0,3045.9,0.7553]
[1731148657170,0.68252836,3046.5,3045.9,0.7553]
[1731148657336,0.68252836,3046.5,3046.1,0.7553]
[1731148657337,0.30690805,3046.4,3046.1,0.7553]
[1731148657538,0.68252836,3046.6,3046.1,0.7553]
[1731148657776,0.68252836,3046.6,3046.0,0.41351991]
[1731148657777,0.3068975,3046.5,3046.3,0.7553]
[1731148657928,0.68252836,3046.7,3046.3,0.7553]
[1731148658125,0.68252836,3046.8,3046.5,0.7553]
[1731148658453,0.68252836,3046.9,3046.5,0.7553]
[1731148658772,0.30674642,3046.8,3046.5,0.7553]
[1731148658972,0.68252836,3046.9,3046.5,0.7553]
[1731148659327,0.30674603,3046.8,3046.5,0.7553]
[1731148659642,0.30666252,3046.7,3046.5,0.7553]
[1731148659974,0.68252836,3046.8,3046.5,0.7553]
[1731148660276,0.30666813,3046.7,3046.5,0.7553]
[1731148660425,0.68252836,3046.9,3046.5,0.7553]
[1731148660625,0.30660646,3046.8,3046.5,0.7553]
[1731148660883,0.68252836,3046.9,3046.5,0.7553]
[1731148661029,0.30660775,3046.8,3046.5,0.7553]
[1731148661370,0.68252836,3047.0,3046.5,0.7553]
[1731148661533,0.30655245,3046.9,3046.5,0.7553]
[1731148661732,0.68252836,3047.0,3046.5,0.7553]
[1731148661932,0.30654886,3046.9,3046.5,0.7553]
[1731148662282,0.68252836,3047.0,3046.5,0.7553]
[1731148662432,0.30658224,3046.9,3046.5,0.7553]
[1731148662632,0.68252836,3047.1,3046.5,0.7553]
[1731148662877,0.9890524,3047.0,3046.5,0.7553]
[1731148663043,0.9890524,3046.9,3046.5,0.7553]
[1731148663371,0.30652404,3046.8,3046.5,0.7553]
[1731148663687,0.68252836,3047.0,3046.5,0.7553]
[1731148663973,1.74962147,3046.9,3045.7,0.7553]
[1731148664186,0.68252836,3046.6,3045.7,0.7553]
[1731148664350,0.68252836,3046.5,3045.8,0.05315657]
[1731148664671,0.98902147,3046.4,3045.7,0.7553]
[1731148664874,0.30649311,3046.3,3045.7,0.7553]
[1731148665079,0.72843111,3046.5,3045.7,0.7553]
[1731148665226,1.36505673,3046.7,3045.7,0.7553]
[1731148665227,3.0,3046.7,3045.7,0.7553]
[1731148665432,1.36505673,3046.7,3045.7,0.7553]
[1731148665769,3.0,3046.8,3045.7,0.7553]
[1731148665770,4.36505673,3046.8,3045.7,0.7553]
[1731148665975,5.10101185,3046.8,3045.7,0.7553]
[1731148666174,1.36505673,3046.7,3045.7,0.7553]
[1731148666468,4.36505673,3046.6,3045.7,0.7553]
[1731148666774,1.36505673,3046.5,3045.7,0.7553]
[1731148667137,4.36505673,3046.5,3045.7,0.7553]
[1731148667658,1.36505673,3046.5,3045.7,0.7553]
[1731148667843,1.97318232,3046.5,3045.7,0.7553]
[1731148668382,4.36505673,3046.6,3045.7,0.7553]
[1731148668531,1.36505673,3046.6,3045.7,0.7553]
[1731148669374,4.36505673,3046.7,3045.8,0.05318786]
[1731148669560,4.36505673,3046.7,3045.9,0.833]
[1731148670532,1.36505673,3046.6,3045.9,0.833]
[1731148670951,4.36505673,3046.7,3045.9,0.833]
[1731148671149,1.36505673,3046.7,3045.9,0.833]
[1731148671675,1.36505673,3046.6,3045.9,0.833]
[1731148671876,1.36505673,3046.5,3045.9,0.833]
[1731148674136,1.03008318,3046.4,3045.9,0.833]
[1731148675051,0.68675646,3046.3,3045.9,0.833]
[1731148677480,0.68675646,3046.4,3045.9,0.833]
[1731148677668,1.03008318,3046.6,3045.9,0.833]
[1731148677669,0.68675646,3046.5,3045.9,0.833]
[1731148677865,0.68675646,3046.4,3046.0,0.05310678]
[1731148678272,0.68675646,3046.5,3046.0,0.05310678]
[1731148678439,0.68675646,3046.5,3046.1,0.833]
[1731148679748,0.68675646,3046.6,3046.1,0.833]
[1731148680084,0.68675646,3046.6,3046.2,0.05319699]
[1731148680385,1.03008318,3046.7,3046.3,0.833]
[1731148680386,0.68675646,3046.7,3046.3,0.833]
[1731148681369,0.68675646,3046.6,3046.3,0.833]
[1731148682193,0.68675646,3046.7,3046.3,0.833]
[1731148682901,0.68675646,3046.6,3046.3,0.833]
[1731148684388,1.03008318,3046.7,3046.3,0.833]
[1731148684389,0.68675646,3046.7,3046.3,0.833]
[1731148684949,0.68675646,3046.6,3046.3,0.833]
[1731148685590,0.68675646,3046.7,3046.3,0.833]
[1731148685787,0.68675646,3046.8,3046.3,0.833]
[1731148685993,0.68675646,3046.9,3046.3,0.833]
[1731148686179,0.68675646,3046.9,3046.4,0.84668296]
[1731148686380,0.68675646,3046.9,3046.4,0.7936]
[1731148687053,0.68675646,3047.0,3046.4,0.7936]
[1731148688083,1.36505673,3047.3,3046.5,0.85924099]
[1731148688084,0.68675646,3047.3,3046.5,0.85924099]
[1731148688554,0.68675646,3047.4,3046.7,0.7936]
[1731148688755,0.68675646,3047.4,3046.9,0.7936]
[1731148689312,0.68675646,3047.5,3047.0,0.06563185]
[1731148689600,0.68675646,3047.5,3047.1,0.7936]
[1731148689757,0.68675646,3047.5,3047.1,0.84626416]
[1731148690501,0.68675646,3047.5,3047.1,0.7936]
[1731148691066,0.68675646,3047.6,3047.1,0.7936]
[1731148691283,0.68675646,3047.7,3047.1,0.7936]
[1731148691592,0.68675646,3047.8,3047.1,0.7936]
[1731148692665,4.03008318,3048.0,3047.1,0.7936]
[1731148692666,0.68675646,3047.9,3047.1,0.7936]
[1731148692910,0.68675646,3047.8,3047.1,0.7936]
[1731148693264,0.68675646,3047.9,3047.2,0.0526187]
[1731148693455,0.68675646,3047.9,3046.4,2.73340576]
[1731148693456,0.68675646,3047.9,3047.3,0.7936]
[1731148693883,0.68675646,3048.0,3047.3,0.7936]
[1731148694310,0.68675646,3048.0,3047.4,0.84599763]
[1731148694470,0.63675646,3048.0,3047.4,0.7936]
[1731148694665,1.03008318,3048.2,3047.4,0.7936]
[1731148695524,1.03008318,3048.3,3047.4,0.7936]
[1731148696019,4.81178318,3048.1,3047.4,0.7936]
[1731148696314,1.81178318,3048.1,3047.4,0.7936]
[1731148697322,0.7817,3048.1,3047.4,0.7936]
[1731148698515,1.81178318,3048.1,3047.4,0.7936]
[1731148698719,0.7817,3048.1,3047.4,0.7936]
[1731148698927,4.03008318,3048.2,3047.4,0.7936]
[1731148699226,1.03008318,3048.3,3047.4,0.7936]
[1731148699531,4.03008318,3048.4,3047.4,0.7936]
[1731148699829,1.03008318,3048.4,3047.4,0.7936]
[1731148701455,1.03008318,3048.4,3047.5,0.85921957]
[1731148701736,1.03008318,3048.5,3047.6,0.84590674]
[1731148701888,3.0,3048.6,3047.6,0.84590674]
[1731148701889,4.03008318,3048.6,3047.6,0.84590674]
[1731148702093,4.03008318,3048.6,3047.6,0.7936]
[1731148702931,2.72340576,3048.1,3047.3,0.7936]
[1731148703137,2.72340576,3048.1,3046.3,0.18190564]
[1731148703138,4.81178318,3048.0,3046.3,0.18190564]
[1731148703417,1.03008318,3047.9,3046.3,0.18190564]
[1731148703732,1.03008318,3047.9,3046.6,0.7936]
[1731148703950,1.03008318,3047.8,3046.6,0.7936]
[1731148704233,3.0,3047.4,3046.7,0.05086476]
[1731148704436,3.0,3047.1,3046.7,0.05086476]
[1731148704667,0.68485289,3046.9,3045.4,0.7936]
[1731148704795,4.46655289,3046.8,3045.4,0.7936]
[1731148704993,0.68485289,3046.7,3045.5,0.04677867]
[1731148705190,3.7817,3046.8,3045.5,0.04677867]
[1731148705191,0.68485289,3046.6,3045.5,0.04677867]
[1731148706840,0.68485289,3046.7,3045.6,0.8019]
[1731148707132,0.68485289,3046.7,3045.7,0.04668767]
[1731148707345,1.47016013,3046.7,3045.7,0.04668767]
[1731148707701,0.68485289,3046.6,3045.7,0.04668767]